Workbook

Sheet Hinweise
A1: Geschäftsgang 18
A3: Voraussetzungen
A4: Um den Geschäftsgang buchen zu können müssen Sie Kenntnisse über die folgenden Lehrninhalte haben:
A5: Buchungen auf Bestandskonten, Buchungen auf Erfolgskonten, Bestandsveränderungen, Abschreibungen, Umsatzsteuer, Buchung von Bezugskosten, Buchung von Nachlässen und Erlösberichtigungen
A12: Vorgehensweise
A13: 1. Wählen Sie die Tabelle "Grundbuch".
A15: 2. Buchen Sie die Geschäftsvorfälle
A16: entweder durch Direkteingabe in die entsprechenden Felder des Grundbuchs (Kontennummern und Beträge)
A17: oder durch Aufruf von Buchungsfenstern. (Klicken Sie dazu jeweils auf die Schaltfläche "Buchung" und beenden
A18: Sie die Eingabe mit "OK".)
A19: Die Kontennummern sind vierstellig anzugeben. (siehe Kontenplan). Bei zusammengesetzten Buchungssätzen
A20: sind die Buchungen nach der Höhe der Beträge geordnet vorzunehmen.
A22: 3. Sie können sich den Kontenplan mit Kontennummern jederzeit durch Klick auf den
A23: entsprechenden Button anzeigen lassen.
A25: 4. Die Richtigkeit Ihrer Buchungen wird bestätigt oder Sie werden auf
A26: Fehler hingewiesen. (Ohne Buchung werden Fehler angezeigt.)
A28: 5. Hauptbuch, Gewinn und Verlust und Bilanzbuch werden automatisch erstellt.

Sheet Grundbuch
A2: Geschäftsvorfälle
A3: Grundbuch
G4: 0.19
A6: 1. | B6: Banküberweisung der Umsatzsteuer-Zahllast, | E6: =Bilanzbuch!F7 -> 10400 | F6: =IF(AND(B10="4800",E10="2800"),"Die Konten sind richtig!","Mindestens ein Konto ist falsch!") -> Mindestens ein Konto ist falsch!
A7: Geschäftsvorfall | F7: =IF(AND(D10=E6,G10=E6),"Die Beträge sind richtig!","Mindestens ein Betrag ist falsch!") -> Mindestens ein Betrag ist falsch!
F8: =IF(AND(F6="Die Konten sind richtig!",F7="Die Beträge sind richtig!"),"Alles richtig!","Es sind noch Fehler vorhanden!") -> Es sind noch Fehler vorhanden!
B9: Soll | C9: Konto | D9: € | E9: Haben | F9: Konto | G9: €
A10: Buchungssatz | C10: =IF(B10="","",VLOOKUP(B10,Kontenplan!$A$4:$B$35,2)) ->  | F10: =IF(E10="","",VLOOKUP(E10,Kontenplan!$A$4:$B$35,2)) -> 
A13: 2. | B13: Zieleinkauf von Baumwollstoffen bei der Baumwollweberei Kaiser OHG, | D13: netto | E13: 21300 | F13: =IF(AND(B17="2000",B18="2600",E17="4400"),"Die Konten sind richtig!","Mindestens ein Konto ist falsch!") -> Mindestens ein Konto ist falsch!
A14: Geschäftsvorfall | D14: USt. | E14: =E13*$G$4 -> 4047 | F14: =IF(AND(D17=E13,D18=E14,G17=E15),"Die Beträge sind richtig!","Mindestens ein Betrag ist falsch!") -> Mindestens ein Betrag ist falsch!
D15: brutto | E15: =SUM(E13:E14) -> 25347 | F15: =IF(AND(F13="Die Konten sind richtig!",F14="Die Beträge sind richtig!"),"Alles richtig!","Es sind noch Fehler vorhanden!") -> Es sind noch Fehler vorhanden!
B16: Soll | C16: Konto | D16: € | E16: Haben | F16: Konto | G16: €
A17: Buchungssatz | C17: =IF(B17="","",VLOOKUP(B17,Kontenplan!$A$4:$B$35,2)) ->  | F17: =IF(E17="","",VLOOKUP(E17,Kontenplan!$A$4:$B$35,2)) -> 
C18: =IF(B18="","",VLOOKUP(B18,Kontenplan!$A$4:$B$35,2)) ->  | F18: =IF(E18="","",VLOOKUP(E18,Kontenplan!$A$4:$B$35,2)) -> 
A20: 3. | B20: Barzahlung für Installationsarbeiten am Computernetzwerk der Tropic GmbH, | D20: netto | E20: 450 | F20: =IF(AND(B24="6160",B25="2600",E24="2880"),"Die Konten sind richtig!","Mindestens ein Konto ist falsch!") -> Mindestens ein Konto ist falsch!
A21: Geschäftsvorfall | D21: USt. | E21: =E20*$G$4 -> 85.5 | F21: =IF(AND(D24=E20,D25=E21,G24=E22),"Die Beträge sind richtig!","Mindestens ein Betrag ist falsch!") -> Mindestens ein Betrag ist falsch!
D22: brutto | E22: =SUM(E20:E21) -> 535.5 | F22: =IF(AND(F20="Die Konten sind richtig!",F21="Die Beträge sind richtig!"),"Alles richtig!","Es sind noch Fehler vorhanden!") -> Es sind noch Fehler vorhanden!
B23: Soll | C23: Konto | D23: € | E23: Haben | F23: Konto | G23: €
A24: Buchungssatz | C24: =IF(B24="","",VLOOKUP(B24,Kontenplan!$A$4:$B$35,2)) ->  | F24: =IF(E24="","",VLOOKUP(E24,Kontenplan!$A$4:$B$35,2)) -> 
C25: =IF(B25="","",VLOOKUP(B25,Kontenplan!$A$4:$B$35,2)) ->  | F25: =IF(E25="","",VLOOKUP(E25,Kontenplan!$A$4:$B$35,2)) -> 
A27: 4. | B27: Die Boutique Marinas Collection GmbH begleicht eine Ausgangsrechnung abzüglich 3% Skonto durch Banküberweisung, | D27: Gutschrift | E27: =E30-E29-E28 -> 23086 | F27: =IF(AND(B32="2800",B33="5001",B34="4800",E32="2400"),"Die Konten sind richtig!","Mindestens ein Konto ist falsch!") -> Mindestens ein Konto ist falsch!
D28: Skonto | E28: =ROUND((E30*3%)-((E30*3%)/(100+($G$4*100))*($G$4*100)),2) -> 600
A29: Geschäftsvorfall | D29: USt. | E29: =ROUND(E28*$G$4,2) -> 114 | F29: =IF(AND(D32=E27,D33=E28,D34=E29,G32=E30),"Die Beträge sind richtig!","Mindestens ein Betrag ist falsch!") -> Mindestens ein Betrag ist falsch!
D30: Bruttobetrag | E30: 23800 | F30: =IF(AND(F27="Die Konten sind richtig!",F29="Die Beträge sind richtig!"),"Alles richtig!","Es sind noch Fehler vorhanden!") -> Es sind noch Fehler vorhanden!
B31: Soll | C31: Konto | D31: € | E31: Haben | F31: Konto | G31: €
A32: Buchungssatz | C32: =IF(B32="","",VLOOKUP(B32,Kontenplan!$A$4:$B$35,2)) ->  | F32: =IF(E32="","",VLOOKUP(E32,Kontenplan!$A$4:$B$35,2)) -> 
C33: =IF(B33="","",VLOOKUP(B33,Kontenplan!$A$4:$B$35,2)) ->  | F33: =IF(E33="","",VLOOKUP(E33,Kontenplan!$A$4:$B$35,2)) -> 
C34: =IF(B34="","",VLOOKUP(B34,Kontenplan!$A$4:$B$35,2)) ->  | F34: =IF(E34="","",VLOOKUP(E34,Kontenplan!$A$4:$B$35,2)) -> 
A36: 5. | B36: Bezugskosten für den Einkauf aus Geschäftsvorfall 2 bar, | D36: netto | E36: 870 | F36: =IF(AND(B40="2001",B41="2600",E40="2880"),"Die Konten sind richtig!","Mindestens ein Konto ist falsch!") -> Mindestens ein Konto ist falsch!
A37: Geschäftsvorfall | D37: USt. | E37: =E36*$G$4 -> 165.3 | F37: =IF(AND(D40=E36,D41=E37,G40=E38),"Die Beträge sind richtig!","Mindestens ein Betrag ist falsch!") -> Mindestens ein Betrag ist falsch!
D38: brutto | E38: =SUM(E36:E37) -> 1035.3 | F38: =IF(AND(F36="Die Konten sind richtig!",F37="Die Beträge sind richtig!"),"Alles richtig!","Es sind noch Fehler vorhanden!") -> Es sind noch Fehler vorhanden!
B39: Soll | C39: Konto | D39: € | E39: Haben | F39: Konto | G39: €
A40: Buchungssatz | C40: =IF(B40="","",VLOOKUP(B40,Kontenplan!$A$4:$B$35,2)) ->  | F40: =IF(E40="","",VLOOKUP(E40,Kontenplan!$A$4:$B$35,2)) -> 
C41: =IF(B41="","",VLOOKUP(B41,Kontenplan!$A$4:$B$35,2)) ->  | F41: =IF(E41="","",VLOOKUP(E41,Kontenplan!$A$4:$B$35,2)) -> 
A43: 6. | B43: Rücksendung beschädigter Rohstoffe aus Geschäftsvorfall 2. an Baumwollweberei Kaiser OHG, | D43: netto | E43: 1300 | F43: =IF(AND(B47="4400",E47="2000",E48="2600"),"Die Konten sind richtig!","Mindestens ein Konto ist falsch!") -> Mindestens ein Konto ist falsch!
A44: Geschäftsvorfall | D44: USt. | E44: =E43*$G$4 -> 247 | F44: =IF(AND(D47=E45,G47=E43,G48=E44),"Die Beträge sind richtig!","Mindestens ein Betrag ist falsch!") -> Mindestens ein Betrag ist falsch!
D45: brutto | E45: =SUM(E43:E44) -> 1547 | F45: =IF(AND(F43="Die Konten sind richtig!",F44="Die Beträge sind richtig!"),"Alles richtig!","Es sind noch Fehler vorhanden!") -> Es sind noch Fehler vorhanden!
B46: Soll | C46: Konto | D46: € | E46: Haben | F46: Konto | G46: €
A47: Buchungssatz | C47: =IF(B47="","",VLOOKUP(B47,Kontenplan!$A$4:$B$35,2)) ->  | F47: =IF(E47="","",VLOOKUP(E47,Kontenplan!$A$4:$B$35,2)) -> 
C48: =IF(B48="","",VLOOKUP(B48,Kontenplan!$A$4:$B$35,2)) ->  | F48: =IF(E48="","",VLOOKUP(E48,Kontenplan!$A$4:$B$35,2)) -> 
A50: 7. | B50: Kauf eines Pkw auf Ziel, Listenpreis 34.000,00 Euro. Wir erhalten einen Treuerabatt von 10%. Zieleinkaufspreis: 30.600,00 Euro | D50: netto | E50: 30600 | F50: =IF(AND(B54="0840",B55="2600",E54="4400"),"Die Konten sind richtig!","Mindestens ein Konto ist falsch!") -> Mindestens ein Konto ist falsch!
A51: Geschäftsvorfall | D51: USt. | E51: =E50*$G$4 -> 5814 | F51: =IF(AND(D54=E50,D55=E51,G54=E52),"Die Beträge sind richtig!","Mindestens ein Betrag ist falsch!") -> Mindestens ein Betrag ist falsch!
D52: brutto | E52: =SUM(E50:E51) -> 36414 | F52: =IF(AND(F50="Die Konten sind richtig!",F51="Die Beträge sind richtig!"),"Alles richtig!","Es sind noch Fehler vorhanden!") -> Es sind noch Fehler vorhanden!
B53: Soll | C53: Konto | D53: € | E53: Haben | F53: Konto | G53: €
A54: Buchungssatz | C54: =IF(B54="","",VLOOKUP(B54,Kontenplan!$A$4:$B$35,2)) ->  | F54: =IF(E54="","",VLOOKUP(E54,Kontenplan!$A$4:$B$35,2)) -> 
C55: =IF(B55="","",VLOOKUP(B55,Kontenplan!$A$4:$B$35,2)) ->  | F55: =IF(E55="","",VLOOKUP(E55,Kontenplan!$A$4:$B$35,2)) -> 
A57: 8. | B57: Wir gewähren der Boutique Marinas Collection GmbH einen Bonus, | D57: netto | E57: 450 | F57: =IF(AND(B61="5001",B62="4800",E61="2400"),"Die Konten sind richtig!","Mindestens ein Konto ist falsch!") -> Mindestens ein Konto ist falsch!
A58: Geschäftsvorfall | D58: USt. | E58: =E57*$G$4 -> 85.5 | F58: =IF(AND(D61=E57,D62=E58,G61=E59),"Die Beträge sind richtig!","Mindestens ein Betrag ist falsch!") -> Mindestens ein Betrag ist falsch!
D59: brutto | E59: =SUM(E57:E58) -> 535.5 | F59: =IF(AND(F57="Die Konten sind richtig!",F58="Die Beträge sind richtig!"),"Alles richtig!","Es sind noch Fehler vorhanden!") -> Es sind noch Fehler vorhanden!
B60: Soll | C60: Konto | D60: € | E60: Haben | F60: Konto | G60: €
A61: Buchungssatz | C61: =IF(B61="","",VLOOKUP(B61,Kontenplan!$A$4:$B$35,2)) ->  | F61: =IF(E61="","",VLOOKUP(E61,Kontenplan!$A$4:$B$35,2)) -> 
C62: =IF(B62="","",VLOOKUP(B62,Kontenplan!$A$4:$B$35,2)) ->  | F62: =IF(E62="","",VLOOKUP(E62,Kontenplan!$A$4:$B$35,2)) -> 
A64: 9. | B64: Verkauf von fertigen Erzeugnissen gegen Rechnung, | D64: netto | E64: 53500 | F64: =IF(AND(B68="2400",E68="5000",E69="4800"),"Die Konten sind richtig!","Mindestens ein Konto ist falsch!") -> Mindestens ein Konto ist falsch!
A65: Geschäftsvorfall | D65: USt. | E65: =E64*$G$4 -> 10165 | F65: =IF(AND(D68=E66,G68=E64,G69=E65),"Die Beträge sind richtig!","Mindestens ein Betrag ist falsch!") -> Mindestens ein Betrag ist falsch!
D66: brutto | E66: =SUM(E64:E65) -> 63665 | F66: =IF(AND(F64="Die Konten sind richtig!",F65="Die Beträge sind richtig!"),"Alles richtig!","Es sind noch Fehler vorhanden!") -> Es sind noch Fehler vorhanden!
B67: Soll | C67: Konto | D67: € | E67: Haben | F67: Konto | G67: €
A68: Buchungssatz | C68: =IF(B68="","",VLOOKUP(B68,Kontenplan!$A$4:$B$35,2)) ->  | F68: =IF(E68="","",VLOOKUP(E68,Kontenplan!$A$4:$B$35,2)) -> 
C69: =IF(B69="","",VLOOKUP(B69,Kontenplan!$A$4:$B$35,2)) ->  | F69: =IF(E69="","",VLOOKUP(E69,Kontenplan!$A$4:$B$35,2)) -> 
A71: 10. | B71: Wir zahlen die Kosten für den Transport der verkauften Produkte aus Geschäftsvorfall 9. bar, | D71: netto | E71: 1300 | F71: =IF(AND(B75="6140",B76="2600",E75="2880"),"Die Konten sind richtig!","Mindestens ein Konto ist falsch!") -> Mindestens ein Konto ist falsch!
A72: Geschäftsvorfall | D72: USt. | E72: =E71*$G$4 -> 247 | F72: =IF(AND(D75=E71,D76=E72,G75=E73),"Die Beträge sind richtig!","Mindestens ein Betrag ist falsch!") -> Mindestens ein Betrag ist falsch!
D73: brutto | E73: =SUM(E71:E72) -> 1547 | F73: =IF(AND(F71="Die Konten sind richtig!",F72="Die Beträge sind richtig!"),"Alles richtig!","Es sind noch Fehler vorhanden!") -> Es sind noch Fehler vorhanden!
B74: Soll | C74: Konto | D74: € | E74: Haben | F74: Konto | G74: €
A75: Buchungssatz | C75: =IF(B75="","",VLOOKUP(B75,Kontenplan!$A$4:$B$35,2)) ->  | F75: =IF(E75="","",VLOOKUP(E75,Kontenplan!$A$4:$B$35,2)) -> 
C76: =IF(B76="","",VLOOKUP(B76,Kontenplan!$A$4:$B$35,2)) ->  | F76: =IF(E76="","",VLOOKUP(E76,Kontenplan!$A$4:$B$35,2)) -> 
A78: 11. | B78: Banküberweisung der Eingangsrechnung für Bauwollstoffe aus Geschäftsvorfall 2, unter Berücksichtigung der Rücksendung aus Geschäftsvorfall 6. und Abzug von 2% Skonto. | D78: Lastschrift | E78: =E81-E79-E80 -> 23324 | F78: =IF(AND(B83="4400",E83="2800",E84="2002",E85="2600"),"Die Konten sind richtig!","Mindestens ein Konto ist falsch!") -> Mindestens ein Konto ist falsch!
D79: Skonto | E79: =ROUND((E81*2%)-((E81*2%)/(100+($G$4*100))*($G$4*100)),2) -> 400
A80: Geschäftsvorfall | D80: USt. | E80: =ROUND(E79*$G$4,2) -> 76 | F80: =IF(AND(D83=E81,E81,G83=E78,G84=E79,G85=E80),"Die Beträge sind richtig!","Mindestens ein Betrag ist falsch!") -> Mindestens ein Betrag ist falsch!
D81: Bruttobetrag | E81: =E15-E45 -> 23800 | F81: =IF(AND(F78="Die Konten sind richtig!",F80="Die Beträge sind richtig!"),"Alles richtig!","Es sind noch Fehler vorhanden!") -> Es sind noch Fehler vorhanden!
B82: Soll | C82: Konto | D82: € | E82: Haben | F82: Konto | G82: €
A83: Buchungssatz | C83: =IF(B83="","",VLOOKUP(B83,Kontenplan!$A$4:$B$35,2)) ->  | F83: =IF(E83="","",VLOOKUP(E83,Kontenplan!$A$4:$B$35,2)) -> 
C84: =IF(B84="","",VLOOKUP(B84,Kontenplan!$A$4:$B$35,2)) ->  | F84: =IF(E84="","",VLOOKUP(E84,Kontenplan!$A$4:$B$35,2)) -> 
C85: =IF(B85="","",VLOOKUP(B85,Kontenplan!$A$4:$B$35,2)) ->  | F85: =IF(E85="","",VLOOKUP(E85,Kontenplan!$A$4:$B$35,2)) -> 
A87: 12. | B87: Wir erhalten von einem Rohstofflieferanten einen Preisnachlass aufgrund eines Mangels an gelieferter Ware, | D87: netto | E87: 950 | F87: =IF(AND(B91="4400",E91="2002",E92="2600"),"Die Konten sind richtig!","Mindestens ein Konto ist falsch!") -> Mindestens ein Konto ist falsch!
A88: Geschäftsvorfall | D88: USt. | E88: =E87*$G$4 -> 180.5 | F88: =IF(AND(D91=E89,G91=E87,G92=E88),"Die Beträge sind richtig!","Mindestens ein Betrag ist falsch!") -> Mindestens ein Betrag ist falsch!
D89: brutto | E89: =SUM(E87:E88) -> 1130.5 | F89: =IF(AND(F87="Die Konten sind richtig!",F88="Die Beträge sind richtig!"),"Alles richtig!","Es sind noch Fehler vorhanden!") -> Es sind noch Fehler vorhanden!
B90: Soll | C90: Konto | D90: € | E90: Haben | F90: Konto | G90: €
A91: Buchungssatz | C91: =IF(B91="","",VLOOKUP(B91,Kontenplan!$A$4:$B$35,2)) ->  | F91: =IF(E91="","",VLOOKUP(E91,Kontenplan!$A$4:$B$35,2)) -> 
C92: =IF(B92="","",VLOOKUP(B92,Kontenplan!$A$4:$B$35,2)) ->  | F92: =IF(E92="","",VLOOKUP(E92,Kontenplan!$A$4:$B$35,2)) -> 
A94: 13. | B94: Barkauf von Werbegeschenken für die Kunden der Tropic GmbH, | D94: netto | E94: 860 | F94: =IF(AND(B98="6870",B99="2600",E98="2880"),"Die Konten sind richtig!","Mindestens ein Konto ist falsch!") -> Mindestens ein Konto ist falsch!
A95: Geschäftsvorfall | D95: USt. | E95: =E94*$G$4 -> 163.4 | F95: =IF(AND(D98=E94,D99=E95,G98=E96),"Die Beträge sind richtig!","Mindestens ein Betrag ist falsch!") -> Mindestens ein Betrag ist falsch!
D96: brutto | E96: =SUM(E94:E95) -> 1023.4 | F96: =IF(AND(F94="Die Konten sind richtig!",F95="Die Beträge sind richtig!"),"Alles richtig!","Es sind noch Fehler vorhanden!") -> Es sind noch Fehler vorhanden!
B97: Soll | C97: Konto | D97: € | E97: Haben | F97: Konto | G97: €
A98: Buchungssatz | C98: =IF(B98="","",VLOOKUP(B98,Kontenplan!$A$4:$B$35,2)) ->  | F98: =IF(E98="","",VLOOKUP(E98,Kontenplan!$A$4:$B$35,2)) -> 
C99: =IF(B99="","",VLOOKUP(B99,Kontenplan!$A$4:$B$35,2)) ->  | F99: =IF(E99="","",VLOOKUP(E99,Kontenplan!$A$4:$B$35,2)) -> 
A101: 14. | B101: Stoffverbrauch lt. Materialentnahmescheine für | F101: =IF(AND(B106="6000",E106="2000",B107="6020",E107="2020",B108="6030",E108="2030"),"Die Konten sind richtig!","Mindestens ein Konto ist falsch!") -> Mindestens ein Konto ist falsch!
A102: Geschäftsvorfall | C102: - Rohstoffe | E102: 28000
C103: - Hilfsstoffe | E103: 6500 | F103: =IF(AND(D106=E102,D107=E103,D108=E104,G106=E102,G107=E103,G108=E104),"Die Beträge sind richtig!","Mindestens ein Betrag ist falsch!") -> Mindestens ein Betrag ist falsch!
C104: - Betriebsstoffe | E104: 1400 | F104: =IF(AND(F101="Die Konten sind richtig!",F103="Die Beträge sind richtig!"),"Alles richtig!","Es sind noch Fehler vorhanden!") -> Es sind noch Fehler vorhanden!
B105: Soll | C105: Konto | D105: € | E105: Haben | F105: Konto | G105: €
A106: Buchungssatz | C106: =IF(B106="","",VLOOKUP(B106,Kontenplan!$A$4:$B$35,2)) ->  | F106: =IF(E106="","",VLOOKUP(E106,Kontenplan!$A$4:$B$35,2)) -> 
C107: =IF(B107="","",VLOOKUP(B107,Kontenplan!$A$4:$B$35,2)) ->  | F107: =IF(E107="","",VLOOKUP(E107,Kontenplan!$A$4:$B$35,2)) -> 
C108: =IF(B108="","",VLOOKUP(B108,Kontenplan!$A$4:$B$35,2)) ->  | F108: =IF(E108="","",VLOOKUP(E108,Kontenplan!$A$4:$B$35,2)) -> 
A110: 15. | B110: Verkauf von Jeans und Jeansjacken auf Ziel, | D110: netto | E110: 38000 | F110: =IF(AND(B114="2400",E114="5000",E115="4800"),"Die Konten sind richtig!","Mindestens ein Konto ist falsch!") -> Mindestens ein Konto ist falsch!
A111: Geschäftsvorfall | D111: USt. | E111: =E110*$G$4 -> 7220 | F111: =IF(AND(D114=E112,G114=E110,G115=E111),"Die Beträge sind richtig!","Mindestens ein Betrag ist falsch!") -> Mindestens ein Betrag ist falsch!
D112: brutto | E112: =SUM(E110:E111) -> 45220 | F112: =IF(AND(F110="Die Konten sind richtig!",F111="Die Beträge sind richtig!"),"Alles richtig!","Es sind noch Fehler vorhanden!") -> Es sind noch Fehler vorhanden!
B113: Soll | C113: Konto | D113: € | E113: Haben | F113: Konto | G113: €
A114: Buchungssatz | C114: =IF(B114="","",VLOOKUP(B114,Kontenplan!$A$4:$B$35,2)) ->  | F114: =IF(E114="","",VLOOKUP(E114,Kontenplan!$A$4:$B$35,2)) -> 
C115: =IF(B115="","",VLOOKUP(B115,Kontenplan!$A$4:$B$35,2)) ->  | F115: =IF(E115="","",VLOOKUP(E115,Kontenplan!$A$4:$B$35,2)) -> 
A117: 16. | B117: Verkauf eines nicht mehr genutzten Pkw aus dem Bestand der Tropic GmbH gegen Barzahlung, | D117: netto | E117: 1200 | F117: =IF(AND(B121="2880",E121="0840",E122="4800"),"Die Konten sind richtig!","Mindestens ein Konto ist falsch!") -> Mindestens ein Konto ist falsch!
A118: Geschäftsvorfall | D118: USt. | E118: =E117*$G$4 -> 228 | F118: =IF(AND(D121=E119,G121=E117,G122=E118),"Die Beträge sind richtig!","Mindestens ein Betrag ist falsch!") -> Mindestens ein Betrag ist falsch!
D119: brutto | E119: =SUM(E117:E118) -> 1428 | F119: =IF(AND(F117="Die Konten sind richtig!",F118="Die Beträge sind richtig!"),"Alles richtig!","Es sind noch Fehler vorhanden!") -> Es sind noch Fehler vorhanden!
B120: Soll | C120: Konto | D120: € | E120: Haben | F120: Konto | G120: €
A121: Buchungssatz | C121: =IF(B121="","",VLOOKUP(B121,Kontenplan!$A$4:$B$35,2)) ->  | F121: =IF(E121="","",VLOOKUP(E121,Kontenplan!$A$4:$B$35,2)) -> 
C122: =IF(B122="","",VLOOKUP(B122,Kontenplan!$A$4:$B$35,2)) ->  | F122: =IF(E122="","",VLOOKUP(E122,Kontenplan!$A$4:$B$35,2)) -> 
A124: 17. | B124: Banküberweisung an eine Werbeagentur für die Herstellung von Werbeanzeigen, | D124: netto | E124: 4800 | F124: =IF(AND(B128="6870",B129="2600",E128="2800"),"Die Konten sind richtig!","Mindestens ein Konto ist falsch!") -> Mindestens ein Konto ist falsch!
A125: Geschäftsvorfall | D125: USt. | E125: =E124*$G$4 -> 912 | F125: =IF(AND(D128=E124,D129=E125,G128=E126),"Die Beträge sind richtig!","Mindestens ein Betrag ist falsch!") -> Mindestens ein Betrag ist falsch!
D126: brutto | E126: =SUM(E124:E125) -> 5712 | F126: =IF(AND(F124="Die Konten sind richtig!",F125="Die Beträge sind richtig!"),"Alles richtig!","Es sind noch Fehler vorhanden!") -> Es sind noch Fehler vorhanden!
B127: Soll | C127: Konto | D127: € | E127: Haben | F127: Konto | G127: €
A128: Buchungssatz | C128: =IF(B128="","",VLOOKUP(B128,Kontenplan!$A$4:$B$35,2)) ->  | F128: =IF(E128="","",VLOOKUP(E128,Kontenplan!$A$4:$B$35,2)) -> 
C129: =IF(B129="","",VLOOKUP(B129,Kontenplan!$A$4:$B$35,2)) ->  | F129: =IF(E129="","",VLOOKUP(E129,Kontenplan!$A$4:$B$35,2)) -> 
A131: 18. | B131: Verkauf von von Parykleidern und Rippkleidern in verschiedenen Größen an die Kick Moden GmbH gegen Rechnung, | D131: netto | E131: 3200 | F131: =IF(AND(B135="2400",E135="5000",E136="4800"),"Die Konten sind richtig!","Mindestens ein Konto ist falsch!") -> Mindestens ein Konto ist falsch!
A132: Geschäftsvorfall | D132: USt. | E132: =E131*$G$4 -> 608 | F132: =IF(AND(D135=E133,G135=E131,G136=E132),"Die Beträge sind richtig!","Mindestens ein Betrag ist falsch!") -> Mindestens ein Betrag ist falsch!
D133: brutto | E133: =SUM(E131:E132) -> 3808 | F133: =IF(AND(F131="Die Konten sind richtig!",F132="Die Beträge sind richtig!"),"Alles richtig!","Es sind noch Fehler vorhanden!") -> Es sind noch Fehler vorhanden!
B134: Soll | C134: Konto | D134: € | E134: Haben | F134: Konto | G134: €
A135: Buchungssatz | C135: =IF(B135="","",VLOOKUP(B135,Kontenplan!$A$4:$B$35,2)) ->  | F135: =IF(E135="","",VLOOKUP(E135,Kontenplan!$A$4:$B$35,2)) -> 
C136: =IF(B136="","",VLOOKUP(B136,Kontenplan!$A$4:$B$35,2)) ->  | F136: =IF(E136="","",VLOOKUP(E136,Kontenplan!$A$4:$B$35,2)) -> 
A138: 19. | B138: Rücksendung von falsch gelieferten Größen aus dem Verkauf von Geschäftsvorfall 18, | D138: netto | E138: 700 | F138: =IF(AND(B142="5000",B143="4800",E142="2400"),"Die Konten sind richtig!","Mindestens ein Konto ist falsch!") -> Mindestens ein Konto ist falsch!
A139: Geschäftsvorfall | D139: USt. | E139: =E138*$G$4 -> 133 | F139: =IF(AND(D142=E138,D143=E139,G142=E140),"Die Beträge sind richtig!","Mindestens ein Betrag ist falsch!") -> Mindestens ein Betrag ist falsch!
D140: brutto | E140: =SUM(E138:E139) -> 833 | F140: =IF(AND(F138="Die Konten sind richtig!",F139="Die Beträge sind richtig!"),"Alles richtig!","Es sind noch Fehler vorhanden!") -> Es sind noch Fehler vorhanden!
B141: Soll | C141: Konto | D141: € | E141: Haben | F141: Konto | G141: €
A142: Buchungssatz | C142: =IF(B142="","",VLOOKUP(B142,Kontenplan!$A$4:$B$35,2)) ->  | F142: =IF(E142="","",VLOOKUP(E142,Kontenplan!$A$4:$B$35,2)) -> 
C143: =IF(B143="","",VLOOKUP(B143,Kontenplan!$A$4:$B$35,2)) ->  | F143: =IF(E143="","",VLOOKUP(E143,Kontenplan!$A$4:$B$35,2)) -> 
A145: 20. | B145: Die Kick Moden GmbH begleicht die Ausgangsrechnung unter Berücksichtigung der Rücksendung abzüglich 2% Skonto durch Banküberweisung, | D145: Gutschrift | E145: =E148-E147-E146 -> 2915.5 | F145: =IF(AND(B150="2800",B151="5001",B152="4800",E150="2400"),"Die Konten sind richtig!","Mindestens ein Konto ist falsch!") -> Mindestens ein Konto ist falsch!
D146: Skonto | E146: =ROUND((E148*2%)-((E148*2%)/(100+($G$4*100))*($G$4*100)),2) -> 50
A147: Geschäftsvorfall | D147: USt. | E147: =ROUND(E146*$G$4,2) -> 9.5 | F147: =IF(AND(D150=E145,D151=E146,D152=E147,G150=E148),"Die Beträge sind richtig!","Mindestens ein Betrag ist falsch!") -> Mindestens ein Betrag ist falsch!
D148: Bruttobetrag | E148: =E133-E140 -> 2975 | F148: =IF(AND(F145="Die Konten sind richtig!",F147="Die Beträge sind richtig!"),"Alles richtig!","Es sind noch Fehler vorhanden!") -> Es sind noch Fehler vorhanden!
B149: Soll | C149: Konto | D149: € | E149: Haben | F149: Konto | G149: €
A150: Buchungssatz | C150: =IF(B150="","",VLOOKUP(B150,Kontenplan!$A$4:$B$35,2)) ->  | F150: =IF(E150="","",VLOOKUP(E150,Kontenplan!$A$4:$B$35,2)) -> 
C151: =IF(B151="","",VLOOKUP(B151,Kontenplan!$A$4:$B$35,2)) ->  | F151: =IF(E151="","",VLOOKUP(E151,Kontenplan!$A$4:$B$35,2)) -> 
C152: =IF(B152="","",VLOOKUP(B152,Kontenplan!$A$4:$B$35,2)) ->  | F152: =IF(E152="","",VLOOKUP(E152,Kontenplan!$A$4:$B$35,2)) -> 
A154: Abschlussangaben
A155: A1 | B155: Endbestände lt. Inventur | F155: =IF(AND(B159="8010",E159="2100",B160="8010",E160="2200"),"Die Konten sind richtig!","Mindestens ein Konto ist falsch!") -> Mindestens ein Konto ist falsch!
A156: Abschlussangabe | C156: - Unfertige Erzeugnisse | E156: 34000 | F156: =IF(AND(D159=E156,D160=E157,G159=E156,G160=E157),"Die Beträge sind richtig!","Mindestens ein Betrag ist falsch!") -> Mindestens ein Betrag ist falsch!
C157: - Fertige Erzeugnisse | E157: 58000 | F157: =IF(AND(F155="Die Konten sind richtig!",F156="Die Beträge sind richtig!"),"Alles richtig!","Es sind noch Fehler vorhanden!") -> Es sind noch Fehler vorhanden!
B158: Soll | C158: Konto | D158: € | E158: Haben | F158: Konto | G158: €
A159: Buchungssatz | C159: =IF(B159="","",VLOOKUP(B159,Kontenplan!$A$4:$B$35,2)) ->  | F159: =IF(E159="","",VLOOKUP(E159,Kontenplan!$A$4:$B$35,2)) -> 
C160: =IF(B160="","",VLOOKUP(B160,Kontenplan!$A$4:$B$35,2)) ->  | F160: =IF(E160="","",VLOOKUP(E160,Kontenplan!$A$4:$B$35,2)) -> 
A162: A2 | B162: Abschreibungen: - Technische Anlagen und Maschinen | E162: 23500 | F162: =IF(AND(B166="6520",E166="0700",B167="6520",E167="0800",B168="6520",E168="0840"),"Die Konten sind richtig!","Mindestens ein Konto ist falsch!") -> Mindestens ein Konto ist falsch!
A163: Abschlussangabe | B163: - Betriebs- und Geschäftsausstattung | E163: 12500 | F163: =IF(AND(D166=E162,D167=E163,D168=E164,G166=E162,G167=E163,G168=E164),"Die Beträge sind richtig!","Mindestens ein Betrag ist falsch!") -> Mindestens ein Betrag ist falsch!
B164: - Fuhrpark | E164: 14000 | F164: =IF(AND(F162="Die Konten sind richtig!",F163="Die Beträge sind richtig!"),"Alles richtig!","Es sind noch Fehler vorhanden!") -> Es sind noch Fehler vorhanden!
B165: Soll | C165: Konto | D165: € | E165: Haben | F165: Konto | G165: €
A166: Buchungssatz | C166: =IF(B166="","",VLOOKUP(B166,Kontenplan!$A$4:$B$35,2)) ->  | F166: =IF(E166="","",VLOOKUP(E166,Kontenplan!$A$4:$B$35,2)) -> 
C167: =IF(B167="","",VLOOKUP(B167,Kontenplan!$A$4:$B$35,2)) ->  | F167: =IF(E167="","",VLOOKUP(E167,Kontenplan!$A$4:$B$35,2)) -> 
C168: =IF(B168="","",VLOOKUP(B168,Kontenplan!$A$4:$B$35,2)) ->  | F168: =IF(E168="","",VLOOKUP(E168,Kontenplan!$A$4:$B$35,2)) -> 
A170: =IF(AND(F15="Alles richtig!",F22="Alles richtig!",F30="Alles richtig!",F38="Alles richtig!",F45="Alles richtig!",F52="Alles richtig!",F59="Alles richtig!",F66="Alles richtig!",F73="Alles richtig!",F81="Alles richtig!",F89="Alles richtig!",F96="Alles richtig!",F104="Alles richtig!",F112="Alles richtig!",F119="Alles richtig!",F126="Alles richtig!",F133="Alles richtig!",F140="Alles richtig!",F148="Alles richtig!",F157="Alles richtig!",F164="Alles richtig!"),"Super gebucht, die Aufgabe ist gelöst!","Bilden Sie alle Buchungssätze!") -> Bilden Sie alle Buchungssätze!

Sheet Hauptbuch
A1: Hauptbuch
A3: Soll | B3: 0500 Grundstücke und Bauten | J3: Haben
A4: AB | B4: 8000 | E4: =Bilanzbuch!C4 -> 880000 | F4: SB | G4: 8010 | J4: =E4 -> 880000
A6: Soll | B6: 0700 Technische Anlagen und Maschinen | J6: Haben
A7: AB | B7: 8000 | E7: =Bilanzbuch!C5 -> 545000 | F7: A2 | G7: 6520 | J7: =Grundbuch!G166 -> 0
F8: SB | G8: 8010 | J8: =J9-J7 -> 545000
E9: =SUM(E7:E8) -> 545000 | J9: =E9 -> 545000
A11: Soll | B11: 0800 Betriebs- und Geschäftsausstattung | J11: Haben
A12: AB | B12: 8000 | E12: =Bilanzbuch!C6 -> 125000 | F12: A2 | G12: 6520 | J12: =Grundbuch!G167 -> 0
F13: SB | G13: 8010 | J13: =J14-J12 -> 125000
E14: =SUM(E12:E13) -> 125000 | J14: =E14 -> 125000
A16: Soll | B16: 0840 Fuhrpark | J16: Haben
A17: AB | B17: 8000 | E17: =Bilanzbuch!C7 -> 110000 | F17: 16. | G17: 2880 | J17: =Grundbuch!G121 -> 0
A18: 7. | B18: 4400 | E18: =Grundbuch!D54 -> 0 | F18: A2 | G18: 6520 | J18: =Grundbuch!G168 -> 0
F19: SB | G19: 8010 | J19: =J20-J17-J18 -> 110000
E20: =SUM(E17:E19) -> 110000 | J20: =E20 -> 110000
A22: Soll | B22: 2000 Rohstoffe | J22: Haben
A23: AB | B23: 8000 | E23: =Bilanzbuch!C8 -> 98000 | F23: 6. | G23: 4400 | J23: =Grundbuch!G47 -> 0
A24: A | B24: 2001 | E24: =J30 -> 0 | F24: 14. | G24: 6000 | J24: =Grundbuch!G106 -> 0
A25: 2. | B25: 4400 | E25: =Grundbuch!D17 -> 0 | F25: A | G25: 2002 | J25: =E33 -> 0
F26: SB | G26: 8010 | J26: =J27-SUM(J23:J25) -> 98000
E27: =SUM(E23:E25) -> 98000 | J27: =E27 -> 98000
A29: Soll | B29: 2001 Bezugskosten (Rohstoffe) | J29: Haben
A30: 5. | B30: 2880 | E30: =Grundbuch!D40 -> 0 | F30: A | G30: 2000 | J30: =E30 -> 0
A32: Soll | B32: 2002 Nachlässe (Rohstoffe) | J32: Haben
A33: A | B33: 2000 | E33: =E35 -> 0 | F33: 11. | G33: 4400 | J33: =Grundbuch!G84 -> 0
F34: 12. | G34: 4400 | J34: =Grundbuch!G91 -> 0
E35: =J35 -> 0 | J35: =J33+J34 -> 0
A37: Soll | B37: 2020 Hilfsstoffe | J37: Haben
A38: AB | B38: 8000 | E38: =Bilanzbuch!C9 -> 24000 | F38: 14. | G38: 6020 | J38: =Grundbuch!G107 -> 0
F39: SB | G39: 8010 | J39: =J40-J38 -> 24000
E40: =E38 -> 24000 | J40: =E40 -> 24000
A43: Soll | B43: 2030 Betriebsstoffe | J43: Haben
A44: AB | B44: 8000 | E44: =Bilanzbuch!C10 -> 9200 | F44: 14. | G44: 6030 | J44: =Grundbuch!G108 -> 0
F45: SB | G45: 8010 | J45: =J46-J44 -> 9200
E46: =SUM(E44:E45) -> 9200 | J46: =E46 -> 9200
A48: Soll | B48: 2100 Unfertige Erzeugnisse | J48: Haben
A49: AB | B49: 8000 | E49: =Bilanzbuch!C11 -> 24000 | F49: A | G49: 8010 | J49: =Grundbuch!G159 -> 0
A50: =IF(E49<J49,"A","") ->  | B50: =IF(E49<J49,5200,"") ->  | E50: =IF(E49<J49,E51-E49,"") ->  | F50: =IF(E49>J49,"A","") -> A | G50: =IF(J49<E49,5200,"") -> 5200 | J50: =IF($E$49>$J$49,J51-J49,"") -> 24000
E51: =IF($E$49>$J$49,$E$49,$J$49) -> 24000 | J51: =IF($E$49>$J$49,$E$49,$J$49) -> 24000
A53: Soll | B53: 2200 Fertige Erzeugnisse | J53: Haben
A54: AB | B54: 8000 | E54: =Bilanzbuch!C12 -> 46000 | F54: A | G54: 8010 | J54: =Grundbuch!G160 -> 0
A55: =IF(E54<J54,"A","") ->  | B55: =IF(E54<J54,5200,"") ->  | E55: =IF(E54<E56,E56-E54,"") ->  | F55: =IF(J54<E54,"A","") -> A | G55: =IF(J54<E54,5200,"") -> 5200 | J55: =IF(J54<E54,J56-J54,"") -> 46000
E56: =IF(E54>J54,E54,J54) -> 46000 | J56: =IF(E54>J54,E54,J54) -> 46000
A58: Soll | B58: 2400 Forderungen aus Lieferungen und Leistungen | J58: Haben
A59: AB | B59: 8000 | E59: =Bilanzbuch!C13 -> 84000 | F59: 4. | G59: 2800 | H59: 5001 | I59: 4800 | J59: =Grundbuch!G32 -> 0
A60: 9. | B60: 5000 | C60: 4800 | E60: =Grundbuch!D68 -> 0 | F60: 8. | G60: 5001 | H60: 4800 | J60: =Grundbuch!G61 -> 0
A61: 15. | B61: 5000 | C61: 4800 | E61: =Grundbuch!D114 -> 0 | F61: 19. | G61: 5000 | H61: 4800 | J61: =Grundbuch!G142 -> 0
A62: 18. | B62: 5000 | C62: 4800 | E62: =Grundbuch!D135 -> 0 | F62: 20. | G62: 2800 | H62: 5001 | I62: 4800 | J62: =Grundbuch!G150 -> 0
F63: SB | G63: 8010 | J63: =J64-SUM(J59:J62) -> 84000
E64: =SUM(E59:E63) -> 84000 | J64: =E64 -> 84000
A66: Soll | B66: 2600 Vorsteuer | J66: Haben
A67: 2. | B67: 4400 | E67: =Grundbuch!D18 -> 0 | F67: 6. | G67: 4400 | J67: =Grundbuch!G48 -> 0
A68: 3. | B68: 2880 | E68: =Grundbuch!D25 -> 0 | F68: 11. | G68: 4400 | J68: =Grundbuch!G85 -> 0
A69: 5. | B69: 2880 | E69: =Grundbuch!D41 -> 0 | F69: 12. | G69: 4400 | J69: =Grundbuch!G92 -> 0
A70: 7. | B70: 4400 | E70: =Grundbuch!D55 -> 0 | F70: A | G70: 4800 | J70: =J74-SUM(J67:J69) -> 0
A71: 10. | B71: 2880 | E71: =Grundbuch!D76 -> 0
A72: 13. | B72: 2880 | E72: =Grundbuch!D99 -> 0
A73: 17. | B73: 2800 | E73: =Grundbuch!D129 -> 0
E74: =SUM(E67:E73) -> 0 | J74: =E74 -> 0
A76: Soll | B76: 2800 Kreditinstitute/Bank | J76: Haben
A77: AB | B77: 8000 | E77: =Bilanzbuch!C14 -> 75000 | F77: 1. | G77: 4800 | J77: =Grundbuch!G10 -> 0
A78: 4. | B78: 2400 | E78: =Grundbuch!D32 -> 0 | F78: 11. | G78: 4400 | J78: =Grundbuch!G83 -> 0
A79: 20. | B79: 2400 | E79: =Grundbuch!D150 -> 0 | F79: 17. | G79: 6870 | H79: 2600 | J79: =Grundbuch!G128 -> 0
F80: SB | G80: 8010 | J80: =J81-J77-J78-J79 -> 75000
E81: =SUM(E77:E80) -> 75000 | J81: =E81 -> 75000
A83: Soll | B83: 2880 Kasse | J83: Haben
A84: AB | B84: 8000 | E84: =Bilanzbuch!C15 -> 9200 | F84: 3. | G84: 6160 | H84: 2600 | J84: =Grundbuch!G24 -> 0
A85: 16. | B85: 0840 | C85: 4800 | E85: =Grundbuch!D121 -> 0 | F85: 5. | G85: 2001 | H85: 2600 | J85: =Grundbuch!G40 -> 0
F86: 10. | G86: 6140 | H86: 2600 | J86: =Grundbuch!G75 -> 0
F87: 13. | G87: 6870 | H87: 2600 | J87: =Grundbuch!G98 -> 0
F88: SB | G88: 8010 | J88: =J89-SUM(J84:J87) -> 9200
E89: =SUM(E84:E88) -> 9200 | J89: =E89 -> 9200
A91: Soll | B91: 3000 Eigenkapital | J91: Haben
A92: A | B92: 8020 | E92: =IF(GuV!F12>0,GuV!F12,0) -> 70000 | F92: AB | G92: 8000 | J92: =Bilanzbuch!F4 -> 1213000
A93: SB | B93: 8010 | E93: =E94-E92 -> 1143000 | F93: A | G93: 8020 | J93: =IF(GuV!C12>0,GuV!C12,0) -> 0
E94: =J94 -> 1213000 | J94: =SUM(J92:J93) -> 1213000
A96: Soll | B96: 4200 Verbindlichkeiten gegenüber Kreditinstituten (Darlehen) | J96: Haben
A97: SB | B97: 8010 | E97: =J97 -> 760000 | F97: AB | G97: 8000 | J97: =Bilanzbuch!F5 -> 760000
A99: Soll | B99: 4400 Verbindlichkeiten aus Lieferungen und Leistungen | J99: Haben
A100: 6. | B100: 2000 | C100: 2600 | E100: =Grundbuch!D47 -> 0 | F100: AB | G100: 8000 | J100: =Bilanzbuch!F6 -> 46000
A101: 11. | B101: 2800 | C101: 2002 | D101: 2600 | E101: =Grundbuch!D83 -> 0 | F101: 2. | G101: 2000 | H101: 2600 | J101: =Grundbuch!G17 -> 0
A102: 12. | B102: 2002 | C102: 2600 | E102: =Grundbuch!D91 -> 0 | F102: 7. | G102: 0840 | H102: 2600 | J102: =Grundbuch!G54 -> 0
A103: SB | B103: 8010 | E103: =E104-SUM(E100:E102) -> 46000
E104: =J104 -> 46000 | J104: =SUM(J100:J103) -> 46000
A106: Soll | B106: 4800 Umsatzsteuer | J106: Haben
A107: 1. | B107: 2800 | E107: =Grundbuch!D10 -> 0 | F107: AB | G107: 8000 | J107: =Bilanzbuch!F7 -> 10400
A108: 4. | B108: 2400 | E108: =Grundbuch!D34 -> 0 | F108: 9. | G108: 2400 | J108: =Grundbuch!G69 -> 0
A109: 8. | B109: 2400 | E109: =Grundbuch!D62 -> 0 | F109: 15. | G109: 2400 | J109: =Grundbuch!G115 -> 0
A110: 19. | B110: 2400 | E110: =Grundbuch!D143 -> 0 | F110: 16. | G110: 2880 | J110: =Grundbuch!G122 -> 0
A111: 20. | B111: 2400 | E111: =Grundbuch!D152 -> 0 | F111: 18. | G111: 2400 | J111: =Grundbuch!G136 -> 0
A112: A. | B112: 2600 | E112: =J70 -> 0
A113: SB | B113: 8010 | E113: =E114-SUM(E107:E112) -> 10400
E114: =J114 -> 10400 | J114: =SUM(J107:J113) -> 10400
A116: Soll | B116: 5000 Umsatzerlöse | J116: Haben
A117: 19. | B117: 2400 | E117: =Grundbuch!D142 -> 0 | F117: 9. | G117: 2400 | J117: =Grundbuch!G68 -> 0
A118: A | B118: 5001 | E118: =J123 -> 0 | F118: 15. | G118: 2400 | J118: =Grundbuch!G114 -> 0
A119: A | B119: 8020 | E119: =E120-E118-E117 -> 0 | F119: 15. | G119: 2400 | J119: =Grundbuch!G135 -> 0
E120: =J120 -> 0 | J120: =SUM(J117:J119) -> 0
A122: Soll | B122: 5001 Erlösberichtigungen | J122: Haben
A123: 4. | B123: 2400 | E123: =Grundbuch!D33 -> 0 | F123: A | G123: 5000 | J123: =J126 -> 0
A124: 8. | B124: 2400 | E124: =Grundbuch!D61 -> 0
A125: 20. | B125: 2400 | E125: =Grundbuch!D151 -> 0
E126: =SUM(E123:E125) -> 0 | J126: =E126 -> 0
A128: Soll | B128: 5200 Bestandsveränderunen | J128: Haben
A129: =IF(J49<E49,"A","") -> A | B129: =IF(J49<E49,2100,"") -> 2100 | E129: =IF(J49<E49,J50,0) -> 24000 | F129: =IF(E49<J49,"A","") ->  | G129: =IF(E49<J49,2100,"") ->  | J129: =IF(E49<J49,E50,0) -> 0
A130: =IF(J54<E54,"A","") -> A | B130: =IF(J54<E54,2200,"") -> 2200 | E130: =IF(J54<E54,J55,0) -> 46000 | F130: =IF(E54<J54,"A","") ->  | G130: =IF(E54<J54,2200,"") ->  | J130: =IF(E54<J54,E55,0) -> 0
A131: =IF(($J$129+$J$130)>($E$129+$E$130),"A","") ->  | B131: =IF(($J$129+$J$130)>($E$129+$E$130),"8020","") ->  | E131: =IF(($J$129+$J$130)>($E$129+$E$130),($J$129+$J$130)-(E129+E130),0) -> 0 | F131: =IF(($J$129+$J$130)<($E$129+$E$130),"A","") -> A | G131: =IF(($J$129+$J$130)<($E$129+$E$130),"8020","") -> 8020 | J131: =IF(($J$129+$J$130)<($E$129+$E$130),($E$129+$E$130)-(J129+J130),0) -> 70000
E132: =IF(($J$129+$J$130)>($E$129+$E$130),($J$129+$J$130),($E$129+$E$130)) -> 70000 | J132: =IF(($J$129+$J$130)>($E$129+$E$130),($J$129+$J$130),($E$129+$E$130)) -> 70000
A134: Soll | B134: 6000 Aufwendungen für Rohstoffe | J134: Haben
A135: 14. | B135: 2000 | E135: =Grundbuch!D106 -> 0 | F135: A | G135: 8020 | J135: =E135 -> 0
A137: Soll | B137: 6020 Aufwendungen für Hilfsstoffe | J137: Haben
A138: 14. | B138: 2020 | E138: =Grundbuch!D107 -> 0 | F138: A | G138: 8020 | J138: =E138 -> 0
A140: Soll | B140: 6030 Aufwendungen für Betriebsstoffe | J140: Haben
A141: 14. | B141: 2030 | E141: =Grundbuch!D108 -> 0 | F141: A | G141: 8020 | J141: =E141 -> 0
A143: Soll | B143: 6140 Frachten und Femdlager | J143: Haben
A144: 10. | B144: 2880 | E144: =Grundbuch!D75 -> 0 | F144: A | G144: 8020 | J144: =E144 -> 0
A146: Soll | B146: 6160 Fremdinstandhaltung | J146: Haben
A147: 3. | B147: 2880 | E147: =Grundbuch!D24 -> 0 | F147: A | G147: 8020 | J147: =E147 -> 0
A150: Soll | B150: 6520 Abschreibungen auf Sachanlagen | J150: Haben
A151: A2 | B151: 0700 | E151: =Grundbuch!D166 -> 0 | F151: A | G151: 8020 | J151: =J154 -> 0
A152: A2 | B152: 0800 | E152: =Grundbuch!D167 -> 0
A153: A2 | B153: 0840 | E153: =Grundbuch!D168 -> 0
E154: =SUM(E151:E153) -> 0 | J154: =E154 -> 0
A156: Soll | B156: 6870 Werbung | J156: Haben
A157: 13. | B157: 2880 | E157: =Grundbuch!D98 -> 0 | F157: A | G157: 8020 | J157: =J159 -> 0
A158: 17. | B158: 2800 | E158: =Grundbuch!D128 -> 0
E159: =SUM(E157:E158) -> 0 | J159: =E159 -> 0

Sheet GuV
A1: Gewinn- und Verlustrechnung
A3: Soll | B3: 8020 Gewinn und Verlust | F3: Haben
A4: 5200 | B4: =VLOOKUP(A4,Kontenplan!$A$4:$B$35,2) -> Bestandsveränderungen | C4: =IF(Hauptbuch!J131>0,Hauptbuch!J131,0) -> 70000 | D4: 5000 | E4: =VLOOKUP(D4,Kontenplan!$A$4:$B$35,2) -> Umsatzerlöse | F4: =Hauptbuch!E119 -> 0
A5: 6000 | B5: Aufwendungen für Rohstoffe | C5: =Hauptbuch!J135 -> 0 | D5: 5200 | E5: =VLOOKUP(D5,Kontenplan!$A$4:$B$35,2) -> Bestandsveränderungen | F5: =IF(Hauptbuch!E131>0,Hauptbuch!E131,0) -> 0
A6: 6020 | B6: Aufwendungen für Hilfsstoffe | C6: =Hauptbuch!J138 -> 0
A7: 6030 | B7: Aufwendungen für Betriebsstoffe | C7: =Hauptbuch!J141 -> 0
A8: 6140 | B8: Frachten und Fremdlager | C8: =Hauptbuch!J144 -> 0
A9: 6160 | B9: Fremdinstandhaltung | C9: =Hauptbuch!J147 -> 0
A10: 6520 | B10: Abschreibungen auf Sachanlagen | C10: =Hauptbuch!J151 -> 0
A11: 6870 | B11: Werbung | C11: =Hauptbuch!J157 -> 0
A12: =IF(SUM($F$4:$F$11)>SUM($C$4:$C$11),"3000","") ->  | B12: =IF(SUM($F$4:$F$11)>SUM($C$4:$C$11),"Eigenkapital","") ->  | C12: =IF(SUM($F$4:$F$11)>SUM($C$4:$C$11),SUM($F$4:$F$11)-SUM($C$4:$C$11),0) -> 0 | D12: =IF(SUM($F$4:$F$11)>SUM($C$4:$C$11),"","3000") -> 3000 | E12: =IF(SUM($F$4:$F$11)>SUM($C$4:$C$11),"","Eigenkapital") -> Eigenkapital | F12: =IF(SUM($C$4:$C$11)>SUM($F$4:$F$7),SUM($C$4:$C$11)-SUM($F$4:$F$7),0) -> 70000
C13: =IF(SUM($F$4:$F$11)>SUM($C$4:$C$11),SUM($F$4:$F$11),SUM($C$4:$C$11)) -> 70000 | F13: =SUM(F4:F12) -> 70000

Sheet Bilanzbuch
A1: Bilanzbuch
A3: Aktiva | B3: 8000 Eröffnungsbilanz | F3: Passiva
A4: 0500 | B4: =VLOOKUP(A4,Kontenplan!$A$4:$B$35,2) -> Grundstücke und Bauten | C4: 880000 | D4: 3000 | E4: =VLOOKUP(D4,Kontenplan!$A$4:$B$35,2) -> Eigenkapital | F4: =F16-SUM(F5:F15) -> 1213000
A5: 0700 | B5: =VLOOKUP(A5,Kontenplan!$A$4:$B$35,2) -> Technische Anlagen und Maschinen | C5: 545000 | D5: 4200 | E5: Verbindlichkeiten g. Kreditinstitute | F5: 760000
A6: 0800 | B6: =VLOOKUP(A6,Kontenplan!$A$4:$B$35,2) -> Beriebs- und Geschäftsausstattung | C6: 125000 | D6: 4400 | E6: =VLOOKUP(D6,Kontenplan!$A$4:$B$35,2) -> Verbindlichkeiten a.L.u.L. | F6: 46000
A7: 0840 | B7: Fuhrpark | C7: 110000 | D7: 4800 | E7: =VLOOKUP(D7,Kontenplan!$A$4:$B$35,2) -> Umsatzsteuer | F7: 10400
A8: 2000 | B8: =VLOOKUP(A8,Kontenplan!$A$4:$B$35,2) -> Rohstoffe | C8: 98000
A9: 2020 | B9: =VLOOKUP(A9,Kontenplan!$A$4:$B$35,2) -> Hilfsstoffe | C9: 24000
A10: 2030 | B10: =VLOOKUP(A10,Kontenplan!$A$4:$B$35,2) -> Betriebsstoffe | C10: 9200
A11: 2100 | B11: =VLOOKUP(A11,Kontenplan!$A$4:$B$35,2) -> Unfertige Erzeugnisse | C11: 24000
A12: 2200 | B12: =VLOOKUP(A12,Kontenplan!$A$4:$B$35,2) -> Fertige Erzeugnisse | C12: 46000
A13: 2400 | B13: =VLOOKUP(A13,Kontenplan!$A$4:$B$35,2) -> Forderungen a.L.u.L. | C13: 84000
A14: 2800 | B14: =VLOOKUP(A14,Kontenplan!$A$4:$B$35,2) -> Kreditinstitute/Bank | C14: 75000
A15: 2880 | B15: =VLOOKUP(A15,Kontenplan!$A$4:$B$35,2) -> Kasse | C15: 9200
C16: =SUM(C4:C15) -> 2029400 | F16: =C16 -> 2029400
A18: Aktiva | B18: 8010 Schlussbilanz | F18: Passiva
A19: 0500 | B19: =VLOOKUP(A19,Kontenplan!$A$4:$B$35,2) -> Grundstücke und Bauten | C19: =Hauptbuch!J4 -> 880000 | D19: 3000 | E19: =VLOOKUP(D19,Kontenplan!$A$4:$B$35,2) -> Eigenkapital | F19: =Hauptbuch!E93 -> 1143000
A20: 0700 | B20: =VLOOKUP(A20,Kontenplan!$A$4:$B$35,2) -> Technische Anlagen und Maschinen | C20: =Hauptbuch!J8 -> 545000 | D20: 4200 | E20: Verbindlichkeiten g. Kreditinstitute | F20: =Hauptbuch!E97 -> 760000
A21: 0800 | B21: =VLOOKUP(A21,Kontenplan!$A$4:$B$35,2) -> Beriebs- und Geschäftsausstattung | C21: =Hauptbuch!J13 -> 125000 | D21: 4400 | E21: =VLOOKUP(D21,Kontenplan!$A$4:$B$35,2) -> Verbindlichkeiten a.L.u.L. | F21: =Hauptbuch!E103 -> 46000
A22: 0840 | B22: Fuhrpark | C22: =Hauptbuch!J19 -> 110000 | D22: 4800 | E22: =VLOOKUP(D22,Kontenplan!$A$4:$B$35,2) -> Umsatzsteuer | F22: =Hauptbuch!E113 -> 10400
A23: 2000 | B23: =VLOOKUP(A23,Kontenplan!$A$4:$B$35,2) -> Rohstoffe | C23: =Hauptbuch!J26 -> 98000
A24: 2020 | B24: =VLOOKUP(A24,Kontenplan!$A$4:$B$35,2) -> Hilfsstoffe | C24: =Hauptbuch!J39 -> 24000
A25: 2030 | B25: =VLOOKUP(A25,Kontenplan!$A$4:$B$35,2) -> Betriebsstoffe | C25: =Hauptbuch!J45 -> 9200
A26: 2100 | B26: =VLOOKUP(A26,Kontenplan!$A$4:$B$35,2) -> Unfertige Erzeugnisse | C26: =Grundbuch!D159 -> 0
A27: 2200 | B27: =VLOOKUP(A27,Kontenplan!$A$4:$B$35,2) -> Fertige Erzeugnisse | C27: =Grundbuch!D160 -> 0
A28: 2400 | B28: =VLOOKUP(A28,Kontenplan!$A$4:$B$35,2) -> Forderungen a.L.u.L. | C28: =Hauptbuch!J63 -> 84000
A29: 2800 | B29: =VLOOKUP(A29,Kontenplan!$A$4:$B$35,2) -> Kreditinstitute/Bank | C29: =Hauptbuch!J80 -> 75000
A30: 2880 | B30: =VLOOKUP(A30,Kontenplan!$A$4:$B$35,2) -> Kasse | C30: =Hauptbuch!J88 -> 9200
C31: =SUM(C19:C30) -> 1959400 | F31: =SUM(F19:F30) -> 1959400

Sheet Kontenplan
B1: Kontenplan
A3: Nr. | B3: Konto
A4: 0500 | B4: Grundstücke und Bauten
A5: 0700 | B5: Technische Anlagen und Maschinen
A6: 0800 | B6: Beriebs- und Geschäftsausstattung
A7: 0840 | B7: Fuhrpark
A8: 2000 | B8: Rohstoffe
A9: 2001 | B9: Bezugskosten (Rohstoffe)
A10: 2002 | B10: Nachlässe (Rohstoffe)
A11: 2020 | B11: Hilfsstoffe
A12: 2030 | B12: Betriebsstoffe
A13: 2100 | B13: Unfertige Erzeugnisse
A14: 2200 | B14: Fertige Erzeugnisse
A15: 2400 | B15: Forderungen a.L.u.L.
A16: 2600 | B16: Vorsteuer
A17: 2800 | B17: Kreditinstitute/Bank
A18: 2880 | B18: Kasse
A19: 3000 | B19: Eigenkapital
A20: 4200 | B20: Verbindlichkeiten g. Kreditinstitute
A21: 4400 | B21: Verbindlichkeiten a.L.u.L.
A22: 4800 | B22: Umsatzsteuer
A23: 5000 | B23: Umsatzerlöse
A24: 5001 | B24: Erlösberichtigungen
A25: 5200 | B25: Bestandsveränderungen
A26: 6000 | B26: Aufwendungen für Rohstoffe
A27: 6020 | B27: Aufwendungen für Hilfsstoffe
A28: 6030 | B28: Aufwendungen für Betriebsstoffe
A29: 6140 | B29: Frachten und Fremdlager
A30: 6160 | B30: Fremdinstandhaltung
A31: 6520 | B31: Abschreibungen auf Sachanlagen
A32: 6870 | B32: Werbung
A33: 8000 | B33: Eröffnungsbilanz
A34: 8010 | B34: Schlussbilanz
A35: 8020 | B35: Gewinn und Verlust
